[Event "*** Titled Tuesday 3|2 Blitz"]
[Site "Chess.com"]
[Date "2015.02.24"]
[Round "9"]
[White "guillead1"]
[Black "PauloCesarCosta"]
[Result "1-0"]
[WhiteElo "2259"]
[BlackElo "2062"]
[TimeControl "180+2"]
[EndTime "13:01:49 PST"]
[Termination "guillead1 won on time"]

1. d4 {[%clk 0:02:42]} 1... d5 {[%clk 0:01:44.7]} 2. c4 {[%clk 0:02:39.8]} 2...
c6 {[%clk 0:01:39.9]} 3. Nf3 {[%clk 0:02:38.3]} 3... e6 {[%clk 0:01:39.9]} 4. g3
{[%clk 0:02:39.6]} 4... Nf6 {[%clk 0:01:39.5]} 5. Bg2 {[%clk 0:02:41.5]} 5...
Bb4+ {[%clk 0:01:39.9]} 6. Nc3 {[%clk 0:02:40.5]} 6... Ne4 {[%clk 0:01:39.2]} 7.
Bd2 {[%clk 0:02:40.3]} 7... Nxd2 {[%clk 0:01:39.3]} 8. Nxd2 {[%clk 0:02:40.1]}
8... dxc4 {[%clk 0:01:38.4]} 9. Nxc4 {[%clk 0:02:40.7]} 9... O-O {[%clk
0:01:35.8]} 10. O-O {[%clk 0:02:41.3]} 10... Nd7 {[%clk 0:01:30.5]} 11. Qb3
{[%clk 0:02:41.5]} 11... Bxc3 {[%clk 0:01:29.5]} 12. bxc3 {[%clk 0:02:42.3]}
12... Nb6 {[%clk 0:01:31]} 13. Ne5 {[%clk 0:02:43]} 13... Nd7 {[%clk 0:01:28.1]}
14. Nc4 {[%clk 0:02:39.5]} 14... Nb6 {[%clk 0:01:28.8]} 15. Ne5 {[%clk
0:02:39.6]} 15... Nd7 {[%clk 0:01:29.9]} 16. Nd3 {[%clk 0:02:40.8]} 16... Qe7
{[%clk 0:01:26.3]} 17. Qb4 {[%clk 0:02:29.5]} 17... Qxb4 {[%clk 0:01:25.9]} 18.
cxb4 {[%clk 0:02:31.4]} 18... Rd8 {[%clk 0:01:22.3]} 19. e3 {[%clk 0:02:31.1]}
19... Nf6 {[%clk 0:01:19.5]} 20. Rfc1 {[%clk 0:02:30.2]} 20... Bd7 {[%clk
0:01:19.9]} 21. b5 {[%clk 0:02:29.1]} 21... Rac8 {[%clk 0:01:17.8]} 22. Ne5
{[%clk 0:02:26.5]} 22... Nd5 {[%clk 0:01:10.4]} 23. bxc6 {[%clk 0:02:19.2]}
23... Bxc6 {[%clk 0:01:09.4]} 24. Nxc6 {[%clk 0:02:19.6]} 24... Rxc6 {[%clk
0:01:10.1]} 25. Rxc6 {[%clk 0:02:19.7]} 25... bxc6 {[%clk 0:01:11.7]} 26. Rc1
{[%clk 0:02:19.1]} 26... Rd6 {[%clk 0:01:04.9]} 27. Rc5 {[%clk 0:02:12]} 27...
Kf8 {[%clk 0:01:00.8]} 28. Ra5 {[%clk 0:01:53.6]} 28... Rd7 {[%clk 0:01:00.4]}
29. Be4 {[%clk 0:01:54.1]} 29... f5 {[%clk 0:01:00]} 30. Bc2 {[%clk 0:01:53.5]}
30... Rb7 {[%clk 0:00:56.7]} 31. Rc5 {[%clk 0:01:43.3]} 31... Rb6 {[%clk
0:00:50.5]} 32. Ba4 {[%clk 0:01:43.4]} 32... Ne7 {[%clk 0:00:41.6]} 33. Ra5
{[%clk 0:01:37.4]} 33... Rb7 {[%clk 0:00:35.6]} 34. Bb3 {[%clk 0:01:36.8]} 34...
Nd5 {[%clk 0:00:33]} 35. Ra6 {[%clk 0:01:37.4]} 35... Rc7 {[%clk 0:00:31.3]} 36.
a3 {[%clk 0:01:33.1]} 36... Ke7 {[%clk 0:00:32.2]} 37. Ba4 {[%clk 0:01:25.4]}
37... Kd6 {[%clk 0:00:30.4]} 38. Ra5 {[%clk 0:01:25.5]} 38... g5 {[%clk
0:00:29]} 39. Rc5 {[%clk 0:01:25]} 39... g4 {[%clk 0:00:27.8]} 40. Kg2 {[%clk
0:01:24.9]} 40... Kd7 {[%clk 0:00:26.4]} 41. Bc2 {[%clk 0:01:23.3]} 41... Kd6
{[%clk 0:00:26.7]} 42. e4 {[%clk 0:01:24.2]} 42... fxe4 {[%clk 0:00:19.6]} 43.
Bxe4 {[%clk 0:01:26.1]} 43... h6 {[%clk 0:00:19.6]} 44. Bc2 {[%clk 0:01:24.5]}
44... Rb7 {[%clk 0:00:18.8]} 45. Ba4 {[%clk 0:01:22.3]} 45... Rb6 {[%clk
0:00:19.4]} 46. Ra5 {[%clk 0:01:21]} 46... Rb7 {[%clk 0:00:19.1]} 47. Bd1 {[%clk
0:01:21.4]} 47... h5 {[%clk 0:00:19.4]} 48. Bc2 {[%clk 0:01:22.1]} 48... Rb2
{[%clk 0:00:16.5]} 49. Rc5 {[%clk 0:01:23.1]} 49... Rb6 {[%clk 0:00:15.6]} 50.
Bg6 {[%clk 0:01:23]} 50... Nf6 {[%clk 0:00:15.7]} 51. Bxh5 {[%clk 0:01:22.7]}
51... Nxh5 {[%clk 0:00:16.8]} 52. Rxh5 {[%clk 0:01:24.6]} 52... Ra6 {[%clk
0:00:18]} 53. Rg5 {[%clk 0:01:25.2]} 53... Rxa3 {[%clk 0:00:19.1]} 54. Rxg4
{[%clk 0:01:27.1]} 54... a5 {[%clk 0:00:20.4]} 55. h4 {[%clk 0:01:28.8]} 55...
a4 {[%clk 0:00:21.5]} 56. h5 {[%clk 0:01:30.7]} 56... Rb3 {[%clk 0:00:20.7]} 57.
h6 {[%clk 0:01:29]} 57... Rb8 {[%clk 0:00:20.1]} 58. Rg7 {[%clk 0:01:30.4]}
58... Rh8 {[%clk 0:00:18.3]} 59. h7 {[%clk 0:01:31.1]} 59... Kd5 {[%clk
0:00:18.3]} 60. Ra7 {[%clk 0:01:31.9]} 60... a3 {[%clk 0:00:16.6]} 61. g4 {[%clk
0:01:33]} 61... Kxd4 {[%clk 0:00:17]} 62. g5 {[%clk 0:01:34.1]} 62... a2 {[%clk
0:00:14.7]} 63. g6 {[%clk 0:01:34.6]} 63... Ke5 {[%clk 0:00:03.8]} 64. g7 {[%clk
0:01:07.9]} 64... Rxh7 {[%clk 0:00:04.2]} 65. Ra5+ {[%clk 0:01:05.9]} 65... Kf6
{[%clk 0:00:04.2]} 66. g8=Q {[%clk 0:01:07.2]} 66... Rg7+ {[%clk 0:00:05.3]} 67.
Qxg7+ {[%clk 0:01:08.3]} 67... Kxg7 {[%clk 0:00:06.6]} 68. Rxa2 {[%clk
0:01:09.9]} 68... Kf6 {[%clk 0:00:08.1]} 69. Kf3 {[%clk 0:01:11.8]} 69... Kf5
{[%clk 0:00:08.2]} 70. Ke3 {[%clk 0:01:12.9]} 70... e5 {[%clk 0:00:09.5]} 71.
Rc2 {[%clk 0:01:13.8]} 1-0

[Event "*** Titled Tuesday 3|2 Blitz"]
[Site "Chess.com"]
[Date "2015.02.24"]
[Round "9"]
[White "tac49"]
[Black "wonderfultime"]
[Result "1/2-1/2"]
[WhiteElo "2408"]
[BlackElo "2547"]
[TimeControl "180+2"]
[EndTime "13:03:19 PST"]
[Termination "Game drawn by agreement"]

1. e4 {[%clk 0:03:00]} 1... c5 {[%clk 0:02:58.1]} 2. Nf3 {[%clk 0:02:57.5]} 2...
Nc6 {[%clk 0:02:59.1]} 3. d4 {[%clk 0:02:57.9]} 3... cxd4 {[%clk 0:03:01]} 4.
Nxd4 {[%clk 0:02:59.8]} 4... e5 {[%clk 0:03:02.7]} 5. Nb5 {[%clk 0:02:59.8]}
5... d6 {[%clk 0:03:04]} 6. g3 {[%clk 0:02:59.9]} 6... Be7 {[%clk 0:03:03.7]} 7.
Bg2 {[%clk 0:03:00.2]} 7... a6 {[%clk 0:03:03.6]} 8. N5a3 {[%clk 0:02:56.1]}
8... Nf6 {[%clk 0:03:04.6]} 9. O-O {[%clk 0:02:56]} 9... O-O {[%clk 0:03:05.8]}
10. Nc4 {[%clk 0:02:51.9]} 10... b5 {[%clk 0:03:06.6]} 11. Ne3 {[%clk
0:02:52.9]} 11... Bb7 {[%clk 0:03:08.2]} 12. Nc3 {[%clk 0:02:52.9]} 12... Re8
{[%clk 0:03:09.2]} 13. Ncd5 {[%clk 0:02:53.8]} 13... Nxd5 {[%clk 0:03:08.8]} 14.
Nxd5 {[%clk 0:02:55.7]} 14... Rc8 {[%clk 0:03:09]} 15. c3 {[%clk 0:02:56.7]}
15... Bf8 {[%clk 0:03:07.8]} 16. a4 {[%clk 0:02:57.4]} 16... Ne7 {[%clk
0:03:06.1]} 17. Nxe7+ {[%clk 0:02:39.7]} 17... Bxe7 {[%clk 0:03:05.2]} 18. axb5
{[%clk 0:02:41.6]} 18... axb5 {[%clk 0:03:07.1]} 19. Be3 {[%clk 0:02:42.7]}
19... Bc6 {[%clk 0:03:03.9]} 20. Qd3 {[%clk 0:02:40.7]} 20... Ra8 {[%clk
0:02:52.5]} 21. Rfd1 {[%clk 0:02:39.7]} 21... Qc7 {[%clk 0:02:50.2]} 22. h4
{[%clk 0:02:35.3]} 22... Qb7 {[%clk 0:02:49]} 23. b4 {[%clk 0:02:28.6]} 23... h6
{[%clk 0:02:48.5]} 24. c4 {[%clk 0:02:02.4]} 24... Rec8 {[%clk 0:02:23.7]} 25.
Rxa8 {[%clk 0:01:47.7]} 25... Rxa8 {[%clk 0:02:22.4]} 26. Rc1 {[%clk 0:01:40.5]}
26... Ra4 {[%clk 0:01:56.7]} 27. c5 {[%clk 0:01:31.4]} 27... dxc5 {[%clk
0:01:54.5]} 28. Bxc5 {[%clk 0:01:33.3]} 28... Bxc5 {[%clk 0:01:54.7]} 29. Rxc5
{[%clk 0:01:35.2]} 29... Rxb4 {[%clk 0:01:54.1]} 30. Qd6 {[%clk 0:01:10.6]}
30... Rc4 {[%clk 0:01:50.5]} 31. Rxe5 {[%clk 0:00:57]} 31... Rc1+ {[%clk
0:01:49.1]} 32. Kh2 {[%clk 0:00:56.8]} 32... Qa7 {[%clk 0:01:46.4]} 33. Rf5
{[%clk 0:00:35.1]} 33... Qd7 {[%clk 0:00:44.9]} 34. Qxd7 {[%clk 0:00:23.2]}
34... Bxd7 {[%clk 0:00:46.8]} 35. Rd5 {[%clk 0:00:25.1]} 35... Bc6 {[%clk
0:00:48.3]} 36. Rd8+ {[%clk 0:00:23.1]} 36... Kh7 {[%clk 0:00:48.9]} 37. Rc8
{[%clk 0:00:17.3]} 37... Rc4 {[%clk 0:00:45.2]} 38. Rb8 {[%clk 0:00:12.6]} 38...
b4 {[%clk 0:00:37.1]} 39. e5 {[%clk 0:00:12.5]} 39... Bxg2 {[%clk 0:00:39]} 40.
Kxg2 {[%clk 0:00:13.4]} 40... Kg6 {[%clk 0:00:40.9]} 41. Rb7 {[%clk 0:00:12.3]}
41... h5 {[%clk 0:00:40.4]} 42. f4 {[%clk 0:00:11.1]} 42... Rc2+ {[%clk
0:00:36.1]} 43. Kh3 {[%clk 0:00:12.1]} 43... Rb2 {[%clk 0:00:35.9]} 44. Rb6+
{[%clk 0:00:12.2]} 44... Kf5 {[%clk 0:00:35.4]} 45. Rb7 {[%clk 0:00:13.5]} 45...
Ke6 {[%clk 0:00:20.2]} 46. Rb6+ {[%clk 0:00:14.1]} 46... Kf5 {[%clk 0:00:21.8]}
47. Rb7 {[%clk 0:00:15.2]} 47... Kg6 {[%clk 0:00:19.8]} 48. Rb6+ {[%clk
0:00:15.5]} 48... f6 {[%clk 0:00:15.5]} 49. exf6 {[%clk 0:00:17.4]} 49... gxf6
{[%clk 0:00:17]} 50. Rb5 {[%clk 0:00:18.9]} 50... b3 {[%clk 0:00:17.7]} 51. f5+
{[%clk 0:00:17.2]} 51... Kh6 {[%clk 0:00:18.9]} 52. Rb6 {[%clk 0:00:16.5]} 52...
Kg7 {[%clk 0:00:20.3]} 53. Rb7+ {[%clk 0:00:16.3]} 53... Kf8 {[%clk 0:00:21.7]}
54. Rb6 {[%clk 0:00:17.8]} 54... Ke7 {[%clk 0:00:23.2]} 55. Rb7+ {[%clk
0:00:18.8]} 55... Kd6 {[%clk 0:00:24.7]} 56. g4 {[%clk 0:00:15.8]} 56... hxg4+
{[%clk 0:00:26.6]} 57. Kxg4 {[%clk 0:00:17.5]} 57... Rb1 {[%clk 0:00:28.5]} 58.
Kg3 {[%clk 0:00:15.2]} 58... b2 {[%clk 0:00:29.3]} 59. Kg2 {[%clk 0:00:16.3]}
59... Ke5 {[%clk 0:00:30.8]} 60. h5 {[%clk 0:00:15.3]} 60... Kxf5 {[%clk
0:00:25.3]} 61. h6 {[%clk 0:00:12.8]} 61... Rc1 {[%clk 0:00:23.3]} 62. h7 {[%clk
0:00:10.4]} 62... Rc8 {[%clk 0:00:16.5]} 63. Rxb2 {[%clk 0:00:11.6]} 63... Rh8
{[%clk 0:00:17.2]} 64. Rb7 {[%clk 0:00:12.3]} 64... Kg6 {[%clk 0:00:18.4]} 65.
Kf3 {[%clk 0:00:13.7]} 65... Rxh7 {[%clk 0:00:19.9]} 66. Rxh7 {[%clk 0:00:14.8]}
66... Kxh7 {[%clk 0:00:21.8]} 67. Kf4 {[%clk 0:00:16.4]} 67... Kg7 {[%clk
0:00:23.7]} 68. Kf5 {[%clk 0:00:17.5]} 68... Kf7 {[%clk 0:00:25.6]} 69. Kf4
{[%clk 0:00:19]} 69... Ke6 {[%clk 0:00:27.5]} 70. Ke4 {[%clk 0:00:20.4]} 70...
Kd6 {[%clk 0:00:29.4]} 71. Kf5 {[%clk 0:00:21.5]} 71... Ke7 {[%clk 0:00:31.3]}
72. Kf4 {[%clk 0:00:23.1]} 72... Ke6 {[%clk 0:00:33.2]} 73. Ke4 {[%clk
0:00:24.4]} 73... Kf7 {[%clk 0:00:35.1]} 74. Kf5 {[%clk 0:00:25.9]} 74... Kg7
{[%clk 0:00:37]} 75. Kf4 {[%clk 0:00:27.4]} 75... Kf7 {[%clk 0:00:38.9]} 76. Kf5
{[%clk 0:00:28.7]} 76... Kg7 {[%clk 0:00:40.8]} 77. Kf4 {[%clk 0:00:29.9]} 77...
Kg6 {[%clk 0:00:42.7]} 78. Kg4 {[%clk 0:00:31.1]} 78... f5+ {[%clk 0:00:44.6]}
79. Kf4 {[%clk 0:00:32]} 79... Kf6 {[%clk 0:00:46.5]} 80. Kf3 {[%clk 0:00:33.5]}
80... Kg5 {[%clk 0:00:48]} 81. Kg3 {[%clk 0:00:34.7]} 81... Kh5 {[%clk
0:00:49.6]} 82. Kf4 {[%clk 0:00:35.9]} 82... Kg6 {[%clk 0:00:51.5]} 83. Kf3
{[%clk 0:00:37.4]} 83... Kg5 {[%clk 0:00:53.4]} 84. Kg3 {[%clk 0:00:38.6]} 84...
f4+ {[%clk 0:00:55]} 85. Kf3 {[%clk 0:00:39.8]} 85... Kf5 {[%clk 0:00:56.9]} 86.
Kf2 {[%clk 0:00:41.2]} 86... Ke4 {[%clk 0:00:58.8]} 87. Ke2 {[%clk 0:00:42.4]}
87... Kd4 {[%clk 0:01:00.4]} 88. Kf3 {[%clk 0:00:43.6]} 88... Ke5 {[%clk
0:01:02.3]} 89. Kf2 {[%clk 0:00:45.2]} 89... Kf5 {[%clk 0:01:04.2]} 90. Kf3
{[%clk 0:00:45.8]} 90... Kg5 {[%clk 0:01:05.8]} 91. Kf2 {[%clk 0:00:46.2]} 91...
Kg4 {[%clk 0:01:07.4]} 92. Kg2 {[%clk 0:00:47.3]} 92... f3+ {[%clk 0:01:08.3]}
93. Kf2 {[%clk 0:00:48.4]} 93... Kf4 {[%clk 0:01:10.2]} 94. Kf1 {[%clk
0:00:49.2]} 94... Ke4 {[%clk 0:01:11.8]} 95. Kf2 {[%clk 0:00:50.3]} 95... Kf4
{[%clk 0:01:13.2]} 96. Kf1 {[%clk 0:00:51.2]} 96... Ke5 {[%clk 0:01:14.8]} 97.
Kf2 {[%clk 0:00:51.6]} 97... Ke4 {[%clk 0:01:16.2]} 98. Kf1 {[%clk 0:00:51.7]}
1/2-1/2